fUSD/lending_fUSD_20240227
["ID","MTS","AMOUNT","RATE_DAILY","PERIOD"]
[315422885,1709023852729,-592.15,0.00022999,2]
[315422886,1709023852739,-592.22155687,0.00022999,2]
[315422887,1709023852749,-713.12,0.00022999,2]
[315422888,1709023852759,-713.12,0.00022999,2]
[315422889,1709023852769,-713.12,0.00022999,2]
[315422890,1709023852779,-713.12,0.00022999,2]
[315422891,1709023852789,-713.12,0.00022999,2]
[315422892,1709023852799,-713.12,0.00022999,2]
[315422893,1709023852809,-572.45,0.00022999,2]
[315422894,1709023852820,-572.45,0.00022999,2]
[315422895,1709023852830,-713.12,0.00022999,2]
[315422896,1709023852841,-572.45,0.00022999,2]
[315422897,1709023852851,-713.12,0.00022999,2]
[315422898,1709023852861,-572.45,0.00022999,2]
[315422899,1709023852872,-572.45,0.00022999,2]
[315422900,1709023852882,-713.12,0.00022999,2]
[315422901,1709023852892,-572.45,0.00022999,2]
[315422902,1709023852906,-572.45,0.00022999,2]
[315422903,1709023852916,-713.12,0.00022999,2]
[315422904,1709023852927,-713.12,0.00022999,2]
[315422905,1709023852938,-713.12,0.00022999,2]
[315422906,1709023852948,-713.12,0.00022999,2]
[315422907,1709023852958,-713.29,0.00022999,2]
[315422908,1709023852969,-572.45,0.00022999,2]
[315422909,1709023852979,-572.45,0.00022999,2]
[315422910,1709023852989,-572.45,0.00022999,2]
[315422911,1709023852999,-572.45,0.00022999,2]
[315422912,1709023853010,-572.45,0.00022999,2]
[315422913,1709023853021,-572.4781,0.00022999,2]
[315422914,1709023853031,-500.0,0.00022999,2]
[315422915,1709023853041,-500.0,0.00022999,2]
[315422916,1709023853051,-500.0,0.00022999,2]
[315422917,1709023853061,-500.0,0.00022999,2]
[315422918,1709023853071,-500.0,0.00022999,2]
[315422919,1709023853081,-500.0,0.00022999,2]
[315422920,1709023853091,-500.0,0.00022999,2]
[315422921,1709023853101,-500.0,0.00022999,2]
[315422922,1709023853111,-500.0,0.00022999,2]
[315422923,1709023853124,-500.0,0.00022999,2]
[315422924,1709023853135,-500.0,0.00022999,2]
[315422925,1709023853145,-500.0,0.00022999,2]
[315422926,1709023853157,-500.0,0.00022999,2]
[315422927,1709023853168,-500.0,0.00022999,2]
[315422928,1709023853178,-203.50641134,0.00022999,2]
[315422929,1709023853188,-500.0,0.00022999,2]
[315422930,1709023853199,-489.25,0.00022999,2]
[315422931,1709023853210,-522.35,0.00022999,2]
[315422932,1709023853221,-522.35,0.00022999,2]
[315422933,1709023853231,-1269.98,0.00022999,2]
[315422934,1709023853242,-522.35,0.00022999,2]
[315422935,1709023853252,-1269.98,0.00022999,2]
[315422936,1709023853262,-522.35,0.00022999,2]
[315422937,1709023853272,-1269.98,0.00022999,2]
[315422938,1709023853282,-522.35,0.00022999,2]
[315422939,1709023853292,-1269.98,0.00022999,2]
[315422940,1709023853302,-1269.98,0.00022999,2]
[315422941,1709023853312,-522.35,0.00022999,2]
[315422942,1709023853322,-1269.98,0.00022999,2]
[315422943,1709023853332,-522.35,0.00022999,2]
[315422944,1709023853343,-1269.98,0.00022999,2]
[315422945,1709023853353,-522.35,0.00022999,2]
[315422946,1709023853363,-1269.98,0.00022999,2]
[315422947,1709023853373,-522.35,0.00022999,2]
[315422948,1709023853384,-1269.98,0.00022999,2]
[315422949,1709023853393,-522.35,0.00022999,2]
[315422950,1709023853406,-1269.98,0.00022999,2]
[315422951,1709023853416,-522.35,0.00022999,2]
[315422952,1709023853426,-1269.98,0.00022999,2]
[315422953,1709023853436,-1269.98,0.00022999,2]
[315422954,1709023853445,-522.35,0.00022999,2]
[315422955,1709023853455,-1269.98,0.00022999,2]
[315422956,1709023853465,-522.35,0.00022999,2]
[315422957,1709023853475,-1270.06178973,0.00022999,2]
[315422958,1709023853485,-522.44876869,0.00022999,2]
[315422959,1709023853495,-500.0,0.00022999,2]
[315422960,1709023853505,-500.0,0.00022999,2]
[315422961,1709023853515,-500.0,0.00022999,2]
[315422962,1709023853524,-370.53,0.00022999,2]
[315422963,1709023853534,-500.0,0.00022999,2]
[315422964,1709023853544,-500.0,0.00022999,2]
[315422965,1709023853554,-1481.01,0.00022999,2]
[315422966,1709023853565,-516.12387901,0.00022999,2]
[315422967,1709023853575,-1481.01,0.00022999,2]
[315422968,1709023853585,-1481.01,0.00022999,2]
[315422969,1709023853595,-1481.01,0.00022999,2]
[315422970,1709023853605,-1481.01,0.00022999,2]
[315422971,1709023853615,-1481.01,0.00022999,2]
[315422972,1709023853626,-1481.01,0.00022999,2]
[315422973,1709023853636,-1481.01,0.00022999,2]
[315422974,1709023853646,-1481.01,0.00022999,2]
[315422975,1709023853657,-1481.01,0.00022999,2]
[315422976,1709023853667,-1481.01,0.00022999,2]
[315422977,1709023853679,-1481.01,0.00022999,2]
[315422978,1709023853689,-1481.01,0.00022999,2]
[315422979,1709023853699,-1481.0772,0.00022999,2]
[315422980,1709023853709,-170.508736,0.00022999,7]
[315422981,1709023853719,-170.508736,0.00022999,7]
[315422982,1709023853729,-500.0,0.00022999,2]
[315422983,1709023853739,-170.508736,0.00022999,7]
[315422984,1709023853748,-500.0,0.00022999,2]
[315422985,1709023853758,-260.11,0.00022999,2]
[315422986,1709023853768,-739.94,0.00022999,2]
[315422987,1709023853778,-739.94,0.00022999,2]
[315422988,1709023853788,-739.94,0.00022999,2]
[315422989,1709023853798,-739.94,0.00022999,2]
[315422990,1709023853808,-739.94,0.00022999,2]
[315422991,1709023853818,-739.94,0.00022999,2]
[315422992,1709023853828,-739.94,0.00022999,2]
[315422993,1709023853838,-170.508736,0.00022999,7]
[315422994,1709023853847,-739.94,0.00022999,2]
[315422995,1709023853857,-170.508736,0.00022999,7]
[315422996,1709023853867,-739.94,0.00022999,2]
[315422997,1709023853877,-170.508736,0.00022999,7]
[315422998,1709023853886,-739.94,0.00022999,2]
[315422999,1709023853896,-739.94,0.00022999,2]
[315423000,1709023853908,-739.94,0.00022999,2]
[315423001,1709023853917,-740.01,0.00022999,2]
[315423002,1709023853927,-535.69,0.00022999,2]
[315423003,1709023853936,-535.69,0.00022999,2]
[315423004,1709023853946,-535.69,0.00022999,2]
[315423005,1709023853955,-535.69,0.00022999,2]
[315423006,1709023853965,-535.69,0.00022999,2]
[315423007,1709023853975,-535.69,0.00022999,2]
[315423008,1709023853985,-535.69,0.00022999,2]
[315423009,1709023853994,-535.69,0.00022999,2]
[315423010,1709023854004,-535.69,0.00022999,2]
[315423011,1709023854014,-535.69,0.00022999,2]
[315423012,1709023854023,-535.69,0.00022999,2]
[315423013,1709023854033,-500.0,0.00022999,2]
[315423014,1709023854043,-524.41,0.00022999,2]
[315423015,1709023854054,-535.69,0.00022999,2]
[315423016,1709023854064,-535.69,0.00022999,2]
[315423017,1709023854074,-535.7511906,0.00022999,2]
[315423018,1709023854084,-931.6,0.00022999,2]
[315423019,1709023854094,-931.6,0.00022999,2]
[315423020,1709023854103,-931.6,0.00022999,2]
[315423021,1709023854113,-3508.75,0.00022999,2]
[315423022,1709023854125,-3508.75,0.00022999,2]
[315423023,1709023854136,-931.6,0.00022999,2]
[315423024,1709023854147,-3508.75,0.00022999,2]
[315423025,1709023854159,-931.6,0.00022999,2]
[315423026,1709023854169,-3508.75,0.00022999,2]
[315423027,1709023854179,-931.6,0.00022999,2]
[315423028,1709023854190,-3508.75,0.00022999,2]
[315423029,1709023854200,-931.6,0.00022999,2]
[315423030,1709023854210,-3508.75,0.00022999,2]
[315423031,1709023854220,-931.6,0.00022999,2]
[315423032,1709023854230,-3508.75,0.00022999,2]
[315423033,1709023854240,-931.6,0.00022999,2]
[315423034,1709023854250,-3508.75,0.00022999,2]
[315423035,1709023854260,-931.6,0.00022999,2]
[315423036,1709023854269,-3508.75,0.00022999,2]
[315423037,1709023854279,-931.6,0.00022999,2]
[315423038,1709023854289,-3508.75,0.00022999,2]
[315423039,1709023854299,-3508.75,0.00022999,2]
[315423040,1709023854310,-3508.75,0.00022999,2]
[315423041,1709023854320,-931.6,0.00022999,2]
[315423042,1709023854493,-3508.91768253,0.00022999,2]
[315423043,1709023854503,-931.6,0.00022999,2]
[315423044,1709023854513,-931.68601618,0.00022999,2]
[315423045,1709023854523,-500.0,0.00022999,2]
[315423046,1709023854532,-500.0,0.00022999,2]
[315423047,1709023854541,-376.96,0.00022999,2]
[315423048,1709023854550,-553.13,0.00022999,2]
[315423049,1709023854561,-500.0,0.00022999,2]
[315423050,1709023854570,-500.0,0.00022999,2]
[315423051,1709023854579,-500.0,0.00022999,2]
[315423052,1709023854588,-500.0,0.00022999,2]
[315423053,1709023854599,-629.95,0.00022999,2]
[315423054,1709023854609,-500.0,0.00022999,2]
[315423055,1709023854619,-629.95,0.00022999,2]
[315423056,1709023854628,-500.0,0.00022999,2]
[315423057,1709023854638,-629.95,0.00022999,2]
[315423058,1709023854647,-500.0,0.00022999,2]
[315423059,1709023854658,-418.07,0.00022999,2]
[315423060,1709023854667,-629.95,0.00022999,2]
[315423061,1709023854677,-629.95,0.00022999,2]
[315423062,1709023854686,-629.95,0.00022999,2]
[315423063,1709023854695,-629.95,0.00022999,2]
[315423064,1709023854705,-629.95,0.00022999,2]
[315423065,1709023854715,-629.95,0.00022999,2]
[315423066,1709023854724,-629.95,0.00022999,2]
[315423067,1709023854734,-629.95,0.00022999,2]
[315423068,1709023854744,-629.95,0.00022999,2]
[315423069,1709023854753,-629.95,0.00022999,2]
[315423070,1709023854763,-630.15,0.00022999,2]
[315423071,1709023854772,-867.37,0.00022999,2]
[315423072,1709023854781,-867.37,0.00022999,2]
[315423073,1709023854791,-867.37,0.00022999,2]
[315423074,1709023854801,-867.37,0.00022999,2]
[315423075,1709023854811,-867.37,0.00022999,2]
[315423076,1709023854820,-867.37,0.00022999,2]
[315423077,1709023854829,-867.37,0.00022999,2]
[315423078,1709023854839,-867.37,0.00022999,2]
[315423079,1709023854848,-867.37,0.00022999,2]
[315423080,1709023854857,-867.37,0.00022999,2]
[315423081,1709023854867,-867.37,0.00022999,2]
[315423082,1709023854876,-867.37,0.00022999,2]
[315423083,1709023854885,-867.37,0.00022999,2]
[315423084,1709023854895,-867.5,0.00022999,2]
[315423085,1709023854905,-546.02,0.00022999,2]
[315423086,1709023854915,-500.0,0.00022999,2]
[315423087,1709023854925,-546.02,0.00022999,2]
[315423088,1709023854934,-500.0,0.00022999,2]
[315423089,1709023854944,-546.02,0.00022999,2]
[315423090,1709023854953,-500.0,0.00022999,2]
[315423091,1709023854962,-546.02,0.00022999,2]
[315423092,1709023854972,-500.0,0.00022999,2]
[315423093,1709023854982,-546.02,0.00022999,2]
[315423094,1709023854991,-500.0,0.00022999,2]
[315423095,1709023855000,-500.0,0.00022999,2]
[315423096,1709023855010,-546.02,0.00022999,2]
[315423097,1709023855020,-500.0,0.00022999,2]
[315423098,1709023855030,-546.02,0.00022999,2]
[315423099,1709023855039,-546.02,0.00022999,2]
[315423100,1709023855049,-500.0,0.00022999,2]
[315423101,1709023855059,-546.02,0.00022999,2]
[315423102,1709023855068,-500.0,0.00022999,2]
[315423103,1709023855078,-546.02,0.00022999,2]
[315423104,1709023855087,-500.0,0.00022999,2]
[315423105,1709023855097,-546.02,0.00022999,2]
[315423106,1709023855106,-282.12,0.00022999,2]
[315423107,1709023855117,-546.02,0.00022999,2]
[315423108,1709023855130,-546.18,0.00022999,2]
[315423109,1709023855139,-740.76,0.00022999,2]
[315423110,1709023855148,-740.76,0.00022999,2]
[315423111,1709023855160,-740.76,0.00022999,2]
[315423112,1709023855171,-740.76,0.00022999,2]
[315423113,1709023855180,-740.76,0.00022999,2]
[315423114,1709023855189,-740.76,0.00022999,2]
[315423115,1709023855199,-740.76,0.00022999,2]
[315423116,1709023855210,-740.76,0.00022999,2]
[315423117,1709023855221,-740.76,0.00022999,2]
[315423118,1709023855231,-367.11585861,0.00022999,2]
[315423119,1709023855262,-373.64414139,0.00022999,2]
[315423120,1709023855271,-740.76,0.00022999,2]
[315423121,1709023855281,-191.0959091,0.00022999,2]
[315423122,1709023855294,-549.6640909,0.00022999,2]
[315423123,1709023855303,-740.76,0.00022999,2]
[315423124,1709023855313,-1425.77635414,0.00022999,2]
[315423125,1709023855325,-1710.64364586,0.00022999,2]
[315423126,1709023855335,-740.96200751,0.00022999,2]
[315423127,1709023855345,-3136.42,0.00022999,2]
[315423128,1709023855355,-3136.42,0.00022999,2]
[315423129,1709023855365,-420.05714993,0.00022999,2]
[315423130,1709023855510,-1288.38893741,0.00022997,2]
[315423131,1709023855523,-741.98106259,0.00022997,2]
[315423132,1709023855532,-929.90519643,0.00022998,2]
[315423133,1709023855545,-1100.46480357,0.00022998,2]
[315423134,1709023855555,-2030.37,0.00022998,2]
[315423135,1709023855565,-2030.37,0.00022998,2]
[315423136,1709023855575,-2716.36285007,0.00022999,2]
[315423137,1709023855585,-3136.42,0.00022999,2]
[315423138,1709023855595,-3136.42,0.00022999,2]
[315423139,1709023855605,-2232.69085416,0.00022999,2]
[315423140,1709023855617,-903.72914584,0.00022999,2]
[315423141,1709023855627,-2792.30968167,0.00022999,2]
[315423142,1709023855645,-344.11031833,0.00022999,2]
[315423143,1709023855655,-228.14053641,0.00022999,2]
[315423144,1709023855667,-2808.9905031,0.00022999,2]
[315423145,1709023855678,-99.28896049,0.00022999,2]
[315423146,1709023855688,-1027.95727669,0.00022999,2]
[315423147,1709023855699,-1645.27710321,0.00022999,2]
[315423148,1709023855711,-463.1856201,0.00022999,2]
[315423149,1709023855720,-2009.8143799,0.00022999,2]
[315423150,1709023855733,-1126.6056201,0.00022999,2]
[315423151,1709023855742,-0.7231545,0.00022999,2]
[315423152,1709023855754,-3135.6968455,0.00022999,2]
[315423153,1709023855763,-3136.42,0.00022999,2]
[315423154,1709023855773,-3136.45230133,0.00022999,2]
[315423155,1709023855783,-500.0,0.00022999,2]
[315423156,1709023855793,-500.0,0.00022999,2]
[315423157,1709023855803,-500.0,0.00022999,2]
[315423158,1709023855813,-500.0,0.00022999,2]
[315423159,1709023855822,-500.0,0.00022999,2]
[315423160,1709023855832,-287.96,0.00022999,2]
[315423161,1709023855843,-500.0,0.00022999,2]
[315423162,1709023855852,-500.0,0.00022999,2]
[315423163,1709023855862,-500.0,0.00022999,2]
[315423164,1709023855871,-500.0,0.00022999,2]
[315423165,1709023855881,-500.0,0.00022999,2]
[315423166,1709023855891,-500.0,0.00022999,2]
[315423167,1709023855901,-908.94388878,0.00022999,2]
[315423168,1709023855914,-741.02611122,0.00022999,2]
[315423169,1709023855923,-548.56,0.00022999,2]
[315423170,1709023855933,-1649.97,0.00022999,2]
[315423171,1709023855943,-1649.97,0.00022999,2]
[315423172,1709023855953,-1649.97,0.00022999,2]
[315423173,1709023855963,-1649.97,0.00022999,2]
[315423174,1709023855972,-1649.97,0.00022999,2]
[315423175,1709023855982,-1649.97,0.00022999,2]
[315423176,1709023855992,-1649.97,0.00022999,2]
[315423177,1709023856001,-954.14427232,0.00022999,2]
[315423178,1709023856013,-373.28422501,0.00022999,2]
[315423179,1709023856025,-322.54150267,0.00022999,2]
[315423180,1709023856034,-312.84410942,0.00022999,2]
[315423181,1709023856052,-1337.12589058,0.00022999,2]
[315423182,1709023856062,-1649.97,0.00022999,2]
[315423183,1709023856071,-1649.97,0.00022999,2]
[315423184,1709023856080,-1650.0195023,0.00022999,2]
[315423185,1709023856090,-2313.04,0.00022999,2]
[315423186,1709023856100,-2313.04,0.00022999,2]
[315423187,1709023856109,-2313.04,0.00022999,2]
[315423188,1709023856120,-795.01052467,0.00022999,2]
[315423189,1709023856133,-1518.02947533,0.00022999,2]
[315423190,1709023856142,-2313.04,0.00022999,2]
[315423191,1709023856154,-2313.04,0.00022999,2]
[315423192,1709023856164,-2313.04,0.00022999,2]
[315423193,1709023856174,-2313.04,0.00022999,2]
[315423194,1709023856184,-2313.04,0.00022999,2]
[315423195,1709023856194,-2313.04,0.00022999,2]
[315423196,1709023856204,-500.0,0.00022999,2]
[315423197,1709023856213,-2313.04,0.00022999,2]
[315423198,1709023856223,-500.0,0.00022999,2]
[315423199,1709023856233,-2313.04,0.00022999,2]
[315423200,1709023856242,-2313.04,0.00022999,2]
[315423201,1709023856252,-500.0,0.00022999,2]
[315423202,1709023856261,-2313.0473877,0.00022999,2]
[315423203,1709023856271,-500.0,0.00022999,2]
[315423204,1709023856280,-448.87,0.00022999,2]
[315423205,1709023856290,-550.2,0.00022999,2]
[315423206,1709023856299,-550.2,0.00022999,2]
[315423207,1709023856309,-550.2,0.00022999,2]
[315423208,1709023856319,-550.2,0.00022999,2]
[315423209,1709023856334,-550.2,0.00022999,2]
[315423210,1709023856350,-550.2,0.00022999,2]
[315423211,1709023856361,-697.07,0.00022999,2]
[315423212,1709023856371,-550.2,0.00022999,2]
[315423213,1709023856382,-697.07,0.00022999,2]
[315423214,1709023856392,-550.2,0.00022999,2]
[315423215,1709023856403,-697.07,0.00022999,2]
[315423216,1709023856414,-550.2,0.00022999,2]
[315423217,1709023856424,-697.07,0.00022999,2]
[315423218,1709023856435,-550.2,0.00022999,2]
[315423219,1709023856445,-697.07,0.00022999,2]
[315423220,1709023856456,-550.2,0.00022999,2]
[315423221,1709023856466,-697.07,0.00022999,2]
[315423222,1709023856476,-550.2,0.00022999,2]
[315423223,1709023856485,-697.07,0.00022999,2]
[315423224,1709023856494,-550.43,0.00022999,2]
[315423225,1709023856504,-697.07,0.00022999,2]
[315423226,1709023856514,-500.0,0.00022999,2]
[315423227,1709023856523,-697.07,0.00022999,2]
[315423228,1709023856532,-500.0,0.00022999,2]
[315423229,1709023856542,-697.07,0.00022999,2]
[315423230,1709023856551,-697.07,0.00022999,2]
[315423231,1709023856561,-525.82,0.00022999,2]
[315423232,1709023856570,-697.07,0.00022999,2]
[315423233,1709023856581,-697.07,0.00022999,2]
[315423234,1709023856590,-697.16456668,0.00022999,2]
[315423235,1709023856599,-2269.66,0.00022999,2]
[315423236,1709023856608,-2269.66,0.00022999,2]
[315423237,1709023856618,-2269.66,0.00022999,2]
[315423238,1709023856627,-1598.48857029,0.00022999,2]
[315423239,1709023856645,-671.17142971,0.00022999,2]
[315423240,1709023856655,-211.65498254,0.00022999,2]
[315423241,1709023856667,-1975.37433958,0.00022999,2]
[315423242,1709023894022,207.0,0.00016813,2]
[315423243,1709023935042,7975.33,0.0003,120]
[315423246,1709024002239,2500.0,0.00022738,30]
[315423250,1709024118427,770.0,0.0001,2]
[315423251,1709024118450,409.9766174,0.0001,2]
[315423253,1709024579685,2500.0,0.00022598,30]
[315423254,1709024756114,-155.0,0.00019595,2]
[315423255,1709024756135,-0.02770882,0.00019595,2]
[315423256,1709024795098,-201.01801353,0.00019594,2]
[315423257,1709024825109,-300.0,0.00019,2]
[315423258,1709024825130,-153.20077213,0.00019595,2]
[315423259,1709024834129,-162.35618226,0.00019595,2]
[315423260,1709024842120,-150.28151186,0.00019595,2]
[315423261,1709024842140,-155.0,0.00019596,2]
[315423262,1709024842160,-155.0,0.00019596,2]
[315423263,1709024842180,-84.75494883,0.00019597,2]
[315423264,1709024843102,-202.94048359,0.00019597,2]
[315423265,1709024844107,-623.69456758,0.00019597,2]
[315423266,1709024844129,-155.0,0.000197,2]
[315423267,1709024844150,-300.0,0.0002,2]
[315423268,1709024844174,-204.0,0.00020723,2]
[315423269,1709024844195,-177.72641831,0.00020853,2]
[315423270,1709024844232,-113.27358169,0.00020853,2]
[315423271,1709024844253,-251.52425383,0.00021111,2]
[315423272,1709024847099,-159.17565568,0.00021111,2]
[315423273,1709025020952,1000.0,0.0003,120]
[315423277,1709025031709,-155.0,0.00021108,2]
[315423279,1709025031720,-99.2276,0.00021109,2]
[315423280,1709025031778,-437.26683081,0.00021109,2]
[315423281,1709025031951,-1330.25002746,0.00021109,2]
[315423282,1709025031961,-150.0,0.0002111,2]
[315423283,1709025031971,-589.30009049,0.00021111,2]
[315423284,1709025031980,-23900.0,0.00021111,2]
[315423285,1709025031992,-584.97,0.00021268,2]
[315423286,1709025032002,-250.0,0.00021304,2]
[315423287,1709025032011,-157.9276592,0.00021334,2]
[315423288,1709025032020,-499.99,0.00021334,2]
[315423289,1709025032030,-2000.0,0.00021343,2]
[315423290,1709025032039,-159.22,0.00021361,2]
[315423291,1709025032049,-250.0,0.00021511,2]
[315423292,1709025032058,-155.4,0.00021585,2]
[315423293,1709025032067,-171.72,0.00021747,2]
[315423294,1709025032077,-152.0,0.00021828,3]
[315423295,1709025032086,-911.39,0.00021861,2]
[315423296,1709025032095,-5500.0,0.000219,2]
[315423297,1709025032105,-218.23757119,0.000219,6]
[315423298,1709025032114,-199.76,0.000219,2]
[315423299,1709025032123,-194.97,0.00021918,2]
[315423300,1709025032132,-167.08785112,0.00021978,2]
[315423302,1709025032141,-261.11212564,0.00021979,2]
[315423304,1709025032152,-502.13870315,0.00021979,2]
[315423305,1709025032161,-151.88119042,0.00021979,2]
[315423306,1709025032170,-489.93008762,0.0002198,2]
[315423307,1709025032180,-151.88119042,0.0002198,2]
[315423308,1709025032189,-254.76364556,0.0002198,2]
[315423310,1709025032199,-254.76364556,0.0002198,2]
[315423312,1709025032209,-167.08785112,0.00021981,2]
[315423314,1709025032218,-892.56330711,0.00021982,2]
[315423315,1709025032227,-321.3227906,0.00021983,2]
[315423316,1709025032236,-151.88119042,0.00021983,2]
[315423317,1709025032246,-489.93008762,0.00021984,2]
[315423318,1709025032255,-261.11212564,0.00021984,2]
[315423319,1709025032268,-502.13870315,0.00021984,2]
[315423320,1709025032277,-3874.52702995,0.00021985,2]
[315423321,1709025032285,-321.3227906,0.00021985,2]
[315423322,1709025032294,-1394.82973083,0.00021985,2]
[315423323,1709025032304,-292.07921235,0.00021986,2]
[315423324,1709025032313,-151.88119042,0.00021986,2]
[315423325,1709025032322,-1394.82973083,0.00021987,2]
[315423326,1709025032331,-1394.82973083,0.00021988,2]
[315423327,1709025032340,-502.13870315,0.00021988,2]
[315423329,1709025032349,-254.76364556,0.00021989,2]
[315423331,1709025032358,-1394.82973083,0.00021989,2]
[315423333,1709025032368,-489.93008762,0.0002199,2]
[315423335,1709025032377,-3874.52702995,0.0002199,2]
[315423337,1709025032387,-261.11212564,0.0002199,2]
[315423339,1709025032396,-321.3227906,0.0002199,2]
[315423340,1709025032405,-167.08785112,0.0002199,2]
[315423341,1709025032415,-292.07921235,0.00021991,2]
[315423342,1709025032425,-892.56330711,0.00021993,2]
[315423343,1709025032434,-3874.52702995,0.00021993,2]
[315423344,1709025032443,-502.13870315,0.00021993,2]
[315423345,1709025032453,-892.56330711,0.00021993,2]
[315423346,1709025032463,-892.56330711,0.00021993,2]
[315423347,1709025032472,-292.07921235,0.00021994,2]
[315423348,1709025032482,-254.76364556,0.00021994,2]
[315423349,1709025032493,-292.07921235,0.00021994,2]
[315423350,1709025032503,-489.93008762,0.00021994,2]
[315423351,1709025032513,-3874.52702995,0.00021995,2]
[315423352,1709025032523,-321.3227906,0.00021998,2]
[315423353,1709025032533,-261.11212564,0.00021999,2]
[315423354,1709025032543,-167.08785112,0.00022,2]
[315423355,1709025032552,-3271.37,0.00022,2]
[315423356,1709025032561,-155.0,0.00022,2]
[315423357,1709025032571,-1750.0,0.00022,3]
[315423358,1709025032581,-251.78372974,0.00022,2]
[315423359,1709025032590,-276.50072359,0.00022,2]
[315423360,1709025032599,-150.79918433,0.00022,2]
[315423361,1709025032608,-150.0,0.00022,2]
[315423362,1709025032618,-5000.0,0.00022,2]
[315423363,1709025032627,-177.9,0.00022,2]
[315423364,1709025032636,-194.97,0.00022033,2]
[315423365,1709025032645,-236.82221652,0.00022073,3]
[315423366,1709025032655,-279.46700951,0.00022074,3]
[315423367,1709025032664,-826.26145285,0.00022074,3]
[315423368,1709025032674,-1000.0,0.00022074,3]
[315423369,1709025032683,-227.22189953,0.00022074,3]
[315423370,1709025032692,-194.97,0.00022149,2]
[315423371,1709025032702,-478.094,0.00022255,2]
[315423372,1709025032711,-194.97,0.00022264,2]
[315423373,1709025032721,-150.0,0.00022355,2]
[315423374,1709025032731,-210.128,0.00022355,2]
[315423375,1709025032741,-162.0,0.00022355,2]
[315423376,1709025032750,-194.97,0.00022379,2]
[315423377,1709025032760,-53865.3134,0.00022399,2]
[315423378,1709025032769,-1040.0,0.00022478,2]
[315423379,1709025032778,-192.15999995,0.00022485,2]
[315423380,1709025032788,-194.97,0.00022495,2]
[315423381,1709025032797,-184.5091,0.00022499,2]
[315423382,1709025032806,-8119.4328,0.00022499,2]
[315423383,1709025032816,-5000.0,0.000225,2]
[315423384,1709025032825,-200.0,0.000225,2]
[315423385,1709025032834,-650.0,0.000225,2]
[315423386,1709025032844,-151.85,0.00022522,2]
[315423387,1709025032853,-355.1,0.00022548,2]
[315423388,1709025032863,-537.78,0.00022589,3]
[315423389,1709025032872,-268.89,0.00022589,3]
[315423390,1709025032882,-806.71,0.00022589,3]
[315423391,1709025032892,-204.0,0.00022593,4]
[315423392,1709025032902,-12750.60512831,0.00022599,2]
[315423393,1709025032915,-3173.92869066,0.00022599,2]
[315423394,1709025032935,-11639.93247512,0.00022599,2]
[315423395,1709025032947,-77510.72400591,0.00022599,2]
[315423396,1709025032956,-1000.0,0.000226,2]
[315423397,1709025032966,-194.97,0.0002261,2]
[315423398,1709025032975,-155.4,0.00022665,2]
[315423399,1709025032985,-1000.0,0.00022699,2]
[315423400,1709025032994,-500.0,0.000227,2]
[315423401,1709025033003,-1200.0,0.000227,2]
[315423402,1709025033012,-300.0,0.000227,2]
[315423403,1709025033021,-2000.0,0.000227,2]
[315423404,1709025033030,-500.0,0.000227,2]
[315423405,1709025033039,-194.97,0.00022725,2]